fUST/lending_fUST_20241223
["ID","MTS","AMOUNT","RATE_DAILY","PERIOD"]
[346345558,1734901845232,-500.0,0.00014246,2]
[346345559,1734901845241,-500.0,0.00014246,2]
[346345560,1734901845250,-500.0,0.00014246,2]
[346345561,1734901845260,-500.0,0.00014246,2]
[346345562,1734901845269,-500.0,0.00014246,2]
[346345563,1734901845278,-500.0,0.00014246,2]
[346345564,1734901845288,-176.52845969,0.00014246,2]
[346345565,1734901845297,-500.0,0.00014246,2]
[346345566,1734901845306,-500.0,0.00014246,2]
[346345567,1734901845315,-500.0,0.00014246,2]
[346345568,1734901845324,-1083.63,0.00014246,2]
[346345569,1734901845333,-500.0,0.00014246,2]
[346345570,1734901845342,-500.0,0.00014246,2]
[346345571,1734901845351,-979.18,0.00014246,2]
[346345572,1734901845361,-537.3,0.00014246,2]
[346345573,1734901845370,-500.0,0.00014246,2]
[346345574,1734901845379,-718.12,0.00014246,2]
[346345575,1734901845389,-500.0,0.00014246,2]
[346345576,1734901845399,-765.66,0.00014246,2]
[346345577,1734901845409,-500.0,0.00014246,2]
[346345578,1734901845418,-1030.28,0.00014246,2]
[346345579,1734901845427,-500.0,0.00014246,2]
[346345580,1734901845436,-500.0,0.00014246,2]
[346345581,1734901845445,-500.0,0.00014246,2]
[346345582,1734901845454,-500.0,0.00014246,2]
[346345583,1734901845463,-500.0,0.00014246,2]
[346345584,1734901845472,-997.01,0.00014246,2]
[346345585,1734901845481,-510.54,0.00014246,2]
[346345586,1734901845490,-9333.04,0.00014246,2]
[346345587,1734901845499,-2728.49,0.00014246,2]
[346345588,1734901845508,-506.08,0.00014246,2]
[346345589,1734901845517,-150.0,0.00014389,2]
[346345590,1734901845526,-533.0,0.00014389,2]
[346345591,1734901845536,-781.764,0.00014389,2]
[346345592,1734901845545,-540.72847086,0.0001452,2]
[346345593,1734901845554,-500.0,0.0001452,2]
[346345594,1734901845563,-500.0,0.0001452,2]
[346345595,1734901845573,-500.0,0.0001452,2]
[346345596,1734901845582,-500.0,0.0001452,2]
[346345597,1734901845591,-500.0,0.0001452,2]
[346345598,1734901845600,-500.0,0.0001452,2]
[346345599,1734901845609,-500.0,0.0001452,2]
[346345600,1734901845618,-550.78,0.0001452,2]
[346345601,1734901845627,-672.5,0.0001452,2]
[346345602,1734901845637,-500.0,0.0001452,2]
[346345603,1734901845646,-500.0,0.0001452,2]
[346345604,1734901845655,-500.0,0.0001452,2]
[346345605,1734901845664,-500.0,0.0001452,2]
[346345606,1734901845673,-380.12845239,0.0001452,2]
[346345607,1734901845683,-500.0,0.0001452,2]
[346345608,1734901845692,-500.0,0.0001452,2]
[346345609,1734901845701,-500.0,0.0001452,2]
[346345610,1734901845710,-500.0,0.0001452,2]
[346345611,1734901845724,-500.0,0.0001452,2]
[346345612,1734901845733,-500.0,0.0001452,2]
[346345613,1734901845742,-500.0,0.0001452,2]
[346345614,1734901845751,-22488.95477641,0.0001452,2]
[346345615,1734901845762,-500.0,0.0001452,2]
[346345616,1734901845772,-500.0,0.0001452,2]
[346345617,1734901845781,-500.0,0.0001452,2]
[346345618,1734901845791,-500.0,0.0001452,2]
[346345619,1734901845800,-500.0,0.0001452,2]
[346345620,1734901845810,-617.39,0.0001452,2]
[346345621,1734901845819,-664.65,0.0001452,2]
[346345622,1734901845828,-824.37,0.0001452,2]
[346345623,1734901845837,-5822.56,0.0001452,2]
[346345624,1734901845846,-500.0,0.0001452,2]
[346345625,1734901845856,-3691.65,0.0001452,2]
[346345626,1734901845866,-538.47,0.0001452,2]
[346345627,1734901845876,-500.0,0.0001452,2]
[346345628,1734901845885,-338.48,0.0001452,2]
[346345629,1734901845895,-2853.18,0.0001452,2]
[346345630,1734901845904,-500.0,0.0001452,2]
[346345631,1734901845914,-500.0,0.0001452,2]
[346345632,1734901845923,-500.0,0.0001452,2]
[346345633,1734901845932,-500.0,0.0001452,2]
[346345634,1734901845941,-500.0,0.0001452,2]
[346345635,1734901845951,-500.0,0.0001452,2]
[346345636,1734901845960,-500.0,0.0001452,2]
[346345637,1734901845969,-500.0,0.0001452,2]
[346345638,1734901845979,-500.0,0.0001452,2]
[346345639,1734901845988,-1083.63,0.0001452,2]
[346345640,1734901845997,-500.0,0.0001452,2]
[346345641,1734901846006,-500.0,0.0001452,2]
[346345642,1734901846016,-979.18,0.0001452,2]
[346345643,1734901846025,-537.3,0.0001452,2]
[346345644,1734901846034,-500.0,0.0001452,2]
[346345645,1734901846043,-718.12,0.0001452,2]
[346345647,1734901846053,-500.0,0.0001452,2]
[346345648,1734901846062,-765.66,0.0001452,2]
[346345650,1734901846072,-500.0,0.0001452,2]
[346345652,1734901846080,-1030.28,0.0001452,2]
[346345654,1734901846090,-500.0,0.0001452,2]
[346345655,1734901846099,-500.0,0.0001452,2]
[346345656,1734901846109,-500.0,0.0001452,2]
[346345657,1734901846119,-500.0,0.0001452,2]
[346345659,1734901846128,-500.0,0.0001452,2]
[346345661,1734901846138,-997.01,0.0001452,2]
[346345663,1734901846147,-510.54,0.0001452,2]
[346345664,1734901846157,-9333.04,0.0001452,2]
[346345666,1734901846167,-2728.49,0.0001452,2]
[346345668,1734901846177,-506.08,0.0001452,2]
[346345670,1734901846186,-2669.87837891,0.00014557,2]
[346345672,1734901846195,-642.75821306,0.00014705,2]
[346345673,1734901846205,-500.0,0.00014794,2]
[346345674,1734901846215,-500.0,0.00014794,2]
[346345675,1734901846224,-500.0,0.00014794,2]
[346345676,1734901846233,-500.0,0.00014794,2]
[346345677,1734901846242,-500.0,0.00014794,2]
[346345678,1734901846252,-500.0,0.00014794,2]
[346345679,1734901846261,-500.0,0.00014794,2]
[346345680,1734901846271,-550.78,0.00014794,2]
[346345681,1734901846280,-672.5,0.00014794,2]
[346345682,1734901846289,-500.0,0.00014794,2]
[346345683,1734901846298,-500.0,0.00014794,2]
[346345684,1734901846308,-500.0,0.00014794,2]
[346345685,1734901846318,-500.0,0.00014794,2]
[346345686,1734901846327,-500.0,0.00014794,2]
[346345687,1734901846336,-500.0,0.00014794,2]
[346345688,1734901846345,-500.0,0.00014794,2]
[346345689,1734901846355,-500.0,0.00014794,2]
[346345690,1734901846364,-500.0,0.00014794,2]
[346345691,1734901846373,-500.0,0.00014794,2]
[346345692,1734901846382,-500.0,0.00014794,2]
[346345694,1734901846392,-500.0,0.00014794,2]
[346345696,1734901846401,-500.0,0.00014794,2]
[346345698,1734901846411,-500.0,0.00014794,2]
[346345699,1734901846420,-500.0,0.00014794,2]
[346345700,1734901846429,-500.0,0.00014794,2]
[346345701,1734901846439,-617.39,0.00014794,2]
[346345703,1734901846449,-664.65,0.00014794,2]
[346345705,1734901846458,-824.37,0.00014794,2]
[346345707,1734901846468,-5822.56,0.00014794,2]
[346345709,1734901846479,-500.0,0.00014794,2]
[346345710,1734901846489,-3691.65,0.00014794,2]
[346345711,1734901846498,-538.47,0.00014794,2]
[346345712,1734901846507,-500.0,0.00014794,2]
[346345713,1734901846517,-2853.18,0.00014794,2]
[346345714,1734901846526,-500.0,0.00014794,2]
[346345715,1734901846536,-500.0,0.00014794,2]
[346345716,1734901846547,-323.22460806,0.00014794,2]
[346345718,1734901846567,-500.0,0.00014794,2]
[346345719,1734901846577,-500.0,0.00014794,2]
[346345720,1734901846586,-500.0,0.00014794,2]
[346345721,1734901846595,-500.0,0.00014794,2]
[346345722,1734901846606,-500.0,0.00014794,2]
[346345724,1734901846615,-500.0,0.00014794,2]
[346345726,1734901846625,-1083.63,0.00014794,2]
[346345727,1734901846634,-500.0,0.00014794,2]
[346345728,1734901846644,-500.0,0.00014794,2]
[346345729,1734901846653,-979.18,0.00014794,2]
[346345730,1734901846663,-537.3,0.00014794,2]
[346345732,1734901846672,-500.0,0.00014794,2]
[346345734,1734901846682,-718.12,0.00014794,2]
[346345736,1734901846692,-601.62843155,0.00014794,2]
[346345738,1734901846701,-765.66,0.00014794,2]
[346345739,1734901846710,-500.0,0.00014794,2]
[346345741,1734901846726,-1030.28,0.00014794,2]
[346345743,1734901846736,-500.0,0.00014794,2]
[346345744,1734901846746,-500.0,0.00014794,2]
[346345745,1734901846757,-500.0,0.00014794,2]
[346345747,1734901846766,-500.0,0.00014794,2]
[346345749,1734901846775,-500.0,0.00014794,2]
[346345751,1734901846785,-997.01,0.00014794,2]
[346345752,1734901846795,-510.54,0.00014794,2]
[346345754,1734901846808,-9333.04,0.00014794,2]
[346345756,1734901846823,-2728.49,0.00014794,2]
[346345758,1734901846834,-506.08,0.00014794,2]
[346345761,1734901846844,-2669.87837891,0.000149,2]
[346345762,1734901846853,-420.0,0.00015009,2]
[346345765,1734901846863,-500.0,0.00015068,2]
[346345766,1734901846872,-500.0,0.00015068,2]
[346345769,1734901846881,-500.0,0.00015068,2]
[346345770,1734901846891,-500.0,0.00015068,2]
[346345772,1734901846900,-500.0,0.00015068,2]
[346345775,1734901846910,-500.0,0.00015068,2]
[346345777,1734901846920,-500.0,0.00015068,2]
[346345779,1734901846929,-550.78,0.00015068,2]
[346345781,1734901846939,-672.5,0.00015068,2]
[346345783,1734901846948,-500.0,0.00015068,2]
[346345785,1734901846957,-500.0,0.00015068,2]
[346345787,1734901846967,-500.0,0.00015068,2]
[346345790,1734901846976,-500.0,0.00015068,2]
[346345793,1734901846986,-500.0,0.00015068,2]
[346345795,1734901846995,-500.0,0.00015068,2]
[346345798,1734901847005,-500.0,0.00015068,2]
[346345802,1734901847014,-500.0,0.00015068,2]
[346345805,1734901847023,-500.0,0.00015068,2]
[346345807,1734901847032,-500.0,0.00015068,2]
[346345809,1734901847041,-500.0,0.00015068,2]
[346345810,1734901847050,-500.0,0.00015068,2]
[346345812,1734901847060,-500.0,0.00015068,2]
[346345814,1734901847069,-500.0,0.00015068,2]
[346345816,1734901847078,-184.04452596,0.00015068,2]
[346345818,1734901847088,-500.0,0.00015068,2]
[346345820,1734901847097,-617.39,0.00015068,2]
[346345822,1734901847107,-664.65,0.00015068,2]
[346345824,1734901847116,-824.37,0.00015068,2]
[346345826,1734901847125,-5822.56,0.00015068,2]
[346345828,1734901847134,-500.0,0.00015068,2]
[346345830,1734901847143,-3691.65,0.00015068,2]
[346345831,1734901847153,-538.47,0.00015068,2]
[346345832,1734901847163,-500.0,0.00015068,2]
[346345833,1734901847172,-2853.18,0.00015068,2]
[346345834,1734901847181,-500.0,0.00015068,2]
[346345835,1734901847191,-500.0,0.00015068,2]
[346345836,1734901847201,-282.84449673,0.00015068,2]
[346345837,1734901847211,-500.0,0.00015068,2]
[346345838,1734901847221,-500.0,0.00015068,2]
[346345839,1734901847230,-500.0,0.00015068,2]
[346345840,1734901847239,-500.0,0.00015068,2]
[346345841,1734901847248,-500.0,0.00015068,2]
[346345842,1734901847258,-1083.63,0.00015068,2]
[346345843,1734901847267,-500.0,0.00015068,2]
[346345844,1734901847277,-500.0,0.00015068,2]
[346345845,1734901847286,-979.18,0.00015068,2]
[346345846,1734901847295,-537.3,0.00015068,2]
[346345847,1734901847305,-500.0,0.00015068,2]
[346345848,1734901847314,-718.12,0.00015068,2]
[346345849,1734901847324,-765.66,0.00015068,2]
[346345850,1734901847333,-500.0,0.00015068,2]
[346345851,1734901847342,-1030.28,0.00015068,2]
[346345852,1734901847352,-500.0,0.00015068,2]
[346345853,1734901847361,-500.0,0.00015068,2]
[346345854,1734901847371,-500.0,0.00015068,2]
[346345855,1734901847380,-500.0,0.00015068,2]
[346345856,1734901847390,-500.0,0.00015068,2]
[346345857,1734901847399,-997.01,0.00015068,2]
[346345858,1734901847409,-510.54,0.00015068,2]
[346345859,1734901847419,-9333.04,0.00015068,2]
[346345860,1734901847428,-2728.49,0.00015068,2]
[346345861,1734901847437,-506.08,0.00015068,2]
[346345862,1734901847447,-500.0,0.0001511,2]
[346345863,1734901847456,-2669.87837891,0.00015242,2]
[346345864,1734901847466,-500.0,0.00015336,2]
[346345865,1734901847475,-500.0,0.00015342,2]
[346345866,1734901847485,-500.0,0.00015342,2]
[346345867,1734901847494,-500.0,0.00015342,2]
[346345868,1734901847504,-500.0,0.00015342,2]
[346345869,1734901847513,-500.0,0.00015342,2]
[346345870,1734901847523,-500.0,0.00015342,2]
[346345871,1734901847532,-500.0,0.00015342,2]
[346345872,1734901847542,-550.78,0.00015342,2]
[346345873,1734901847551,-672.5,0.00015342,2]
[346345874,1734901847560,-500.0,0.00015342,2]
[346345875,1734901847570,-232.40757818,0.00015342,2]
[346345876,1734901847580,-500.0,0.00015342,2]
[346345877,1734901847590,-500.0,0.00015342,2]
[346345878,1734901847599,-500.0,0.00015342,2]
[346345879,1734901847609,-500.0,0.00015342,2]
[346345880,1734901847618,-500.0,0.00015342,2]
[346345881,1734901847628,-500.0,0.00015342,2]
[346345882,1734901847637,-500.0,0.00015342,2]
[346345883,1734901847646,-500.0,0.00015342,2]
[346345884,1734901847656,-500.0,0.00015342,2]
[346345885,1734901847666,-500.0,0.00015342,2]
[346345886,1734901847675,-500.0,0.00015342,2]
[346345887,1734901847685,-500.0,0.00015342,2]
[346345888,1734901847694,-500.0,0.00015342,2]
[346345889,1734901847704,-617.39,0.00015342,2]
[346345890,1734901847715,-664.65,0.00015342,2]
[346345891,1734901847726,-824.37,0.00015342,2]
[346345892,1734901847735,-5822.56,0.00015342,2]
[346345893,1734901847744,-500.0,0.00015342,2]
[346345894,1734901847754,-3691.65,0.00015342,2]
[346345895,1734901847765,-538.47,0.00015342,2]
[346345896,1734901847774,-500.0,0.00015342,2]
[346345897,1734901847784,-2853.18,0.00015342,2]
[346345898,1734901847795,-500.0,0.00015342,2]
[346345899,1734901847805,-500.0,0.00015342,2]
[346345900,1734901847814,-500.0,0.00015342,2]
[346345901,1734901847824,-500.0,0.00015342,2]
[346345902,1734901847833,-500.0,0.00015342,2]
[346345903,1734901847843,-500.0,0.00015342,2]
[346345904,1734901847853,-500.0,0.00015342,2]
[346345905,1734901847862,-1083.63,0.00015342,2]
[346345906,1734901847872,-500.0,0.00015342,2]
[346345907,1734901847882,-500.0,0.00015342,2]
[346345908,1734901847892,-979.18,0.00015342,2]
[346345909,1734901847902,-537.3,0.00015342,2]
[346345910,1734901847911,-500.0,0.00015342,2]
[346345911,1734901847921,-718.12,0.00015342,2]
[346345912,1734901847930,-765.66,0.00015342,2]
[346345913,1734901847940,-500.0,0.00015342,2]
[346345914,1734901847950,-1030.28,0.00015342,2]
[346345915,1734901847960,-500.0,0.00015342,2]
[346345916,1734901847969,-500.0,0.00015342,2]
[346345917,1734901847980,-268.57128896,0.00015342,2]
[346345918,1734901847989,-500.0,0.00015342,2]
[346345919,1734901847999,-500.0,0.00015342,2]
[346345920,1734901848008,-997.01,0.00015342,2]
[346345921,1734901848018,-510.54,0.00015342,2]
[346345922,1734901848029,-9333.04,0.00015342,2]
[346345923,1734901848038,-2728.49,0.00015342,2]
[346345924,1734901848047,-506.08,0.00015342,2]
[346345925,1734901848057,-500.0,0.00015396,2]
[346345926,1734901848067,-500.0,0.00015396,2]
[346345927,1734901848077,-506.0,0.000154,5]
[346345928,1734901848087,-642.75821306,0.00015537,2]
[346345929,1734901848097,-500.0,0.00015616,2]
[346345930,1734901848107,-500.0,0.00015616,2]
[346345931,1734901848118,-500.0,0.00015616,2]
[346345932,1734901848128,-500.0,0.00015616,2]
[346345933,1734901848138,-500.0,0.00015616,2]
[346345934,1734901848148,-500.0,0.00015616,2]
[346345935,1734901848158,-500.0,0.00015616,2]
[346345936,1734901848168,-550.78,0.00015616,2]
[346345937,1734901848178,-672.5,0.00015616,2]
[346345938,1734901848188,-500.0,0.00015616,2]
[346345939,1734901848198,-500.0,0.00015616,2]
[346345940,1734901848210,-500.0,0.00015616,2]
[346345941,1734901848220,-500.0,0.00015616,2]
[346345942,1734901848231,-500.0,0.00015616,2]
[346345943,1734901848240,-198.90262334,0.00015616,2]
[346345944,1734901848250,-500.0,0.00015616,2]
[346345945,1734901848259,-500.0,0.00015616,2]
[346345946,1734901848269,-500.0,0.00015616,2]
[346345947,1734901848280,-500.0,0.00015616,2]
[346345948,1734901848290,-500.0,0.00015616,2]
[346345949,1734901848300,-500.0,0.00015616,2]
[346345950,1734901848311,-500.0,0.00015616,2]
[346345951,1734901848321,-500.0,0.00015616,2]
[346345952,1734901848331,-617.39,0.00015616,2]
[346345953,1734901848341,-664.65,0.00015616,2]
[346345954,1734901848351,-824.37,0.00015616,2]
[346345955,1734901848361,-5822.56,0.00015616,2]
[346345956,1734901848370,-500.0,0.00015616,2]
[346345957,1734901848380,-3691.65,0.00015616,2]
[346345958,1734901848390,-538.47,0.00015616,2]
[346345959,1734901848400,-500.0,0.00015616,2]
[346345960,1734901848411,-2853.18,0.00015616,2]
[346345961,1734901848421,-500.0,0.00015616,2]
[346345962,1734901848430,-500.0,0.00015616,2]
[346345963,1734901848440,-500.0,0.00015616,2]
[346345964,1734901848450,-500.0,0.00015616,2]
[346345965,1734901848459,-500.0,0.00015616,2]
[346345966,1734901848469,-500.0,0.00015616,2]
[346345967,1734901848478,-500.0,0.00015616,2]
[346345968,1734901848487,-1083.63,0.00015616,2]
[346345969,1734901848497,-511.25393051,0.00015616,2]
[346345970,1734901848506,-500.0,0.00015616,2]
[346345971,1734901848516,-979.18,0.00015616,2]
[346345972,1734901848525,-537.3,0.00015616,2]
[346345973,1734901848534,-500.0,0.00015616,2]
[346345974,1734901848544,-718.12,0.00015616,2]
[346345975,1734901848554,-765.66,0.00015616,2]
[346345976,1734901848563,-500.0,0.00015616,2]
[346345977,1734901848574,-1030.28,0.00015616,2]
[346345978,1734901848583,-500.0,0.00015616,2]
[346345979,1734901848593,-500.0,0.00015616,2]
[346345980,1734901848603,-500.0,0.00015616,2]
[346345981,1734901848613,-301.18151642,0.00015616,2]
[346345982,1734901848623,-997.01,0.00015616,2]
[346345983,1734901848632,-510.54,0.00015616,2]
[346345984,1734901848642,-9333.04,0.00015616,2]
[346345985,1734901848652,-2728.49,0.00015616,2]
[346345986,1734901848662,-506.08,0.00015616,2]
[346345987,1734901848671,-1000.0,0.00015658,2]
[346345988,1734901848681,-325.694,0.0001568,2]
[346345989,1734901848693,-600.0,0.0001584,2]
[346345990,1734901848711,-1000.0,0.00015884,2]
[346345991,1734901848729,-500.0,0.0001589,2]
[346345992,1734901848739,-500.0,0.0001589,2]
[346345993,1734901848749,-500.0,0.0001589,2]
[346345994,1734901848760,-500.0,0.0001589,2]
[346345995,1734901848770,-500.0,0.0001589,2]
[346345996,1734901848779,-500.0,0.0001589,2]
[346345997,1734901848789,-500.0,0.0001589,2]
[346345998,1734901848801,-550.78,0.0001589,2]
[346345999,1734901848818,-672.5,0.0001589,2]
[346346000,1734901848828,-500.0,0.0001589,2]
[346346001,1734901848837,-500.0,0.0001589,2]
[346346002,1734901848847,-500.0,0.0001589,2]
[346346003,1734901848861,-500.0,0.0001589,2]
[346346004,1734901848871,-500.0,0.0001589,2]
[346346005,1734901848880,-500.0,0.0001589,2]
[346346006,1734901848890,-500.0,0.0001589,2]
[346346007,1734901848915,-500.0,0.0001589,2]
[346346008,1734901848925,-500.0,0.0001589,2]
[346346009,1734901848934,-500.0,0.0001589,2]
[346346010,1734901848943,-500.0,0.0001589,2]
[346346011,1734901848953,-500.0,0.0001589,2]
[346346012,1734901848962,-500.0,0.0001589,2]
[346346013,1734901848972,-617.39,0.0001589,2]
[346346014,1734901848981,-664.65,0.0001589,2]
[346346015,1734901848991,-824.37,0.0001589,2]
[346346016,1734901849001,-5822.56,0.0001589,2]
[346346017,1734901849010,-293.59175456,0.0001589,2]
[346346018,1734901849019,-3691.65,0.0001589,2]
[346346019,1734901849029,-538.47,0.0001589,2]
[346346020,1734901849038,-500.0,0.0001589,2]
[346346021,1734901849047,-2853.18,0.0001589,2]
[346346022,1734901849057,-500.0,0.0001589,2]
[346346023,1734901849067,-500.0,0.0001589,2]
[346346024,1734901849077,-500.0,0.0001589,2]
[346346025,1734901849087,-500.0,0.0001589,2]
[346346026,1734901849097,-500.0,0.0001589,2]
[346346027,1734901849106,-500.0,0.0001589,2]
[346346028,1734901849117,-500.0,0.0001589,2]
[346346029,1734901849127,-1083.63,0.0001589,2]
[346346030,1734901849137,-500.0,0.0001589,2]
[346346031,1734901849147,-979.18,0.0001589,2]
[346346032,1734901849159,-537.3,0.0001589,2]
[346346033,1734901849169,-500.0,0.0001589,2]
[346346034,1734901849179,-718.12,0.0001589,2]
[346346035,1734901849188,-765.66,0.0001589,2]
[346346036,1734901849198,-500.0,0.0001589,2]
[346346037,1734901849209,-1030.28,0.0001589,2]
[346346038,1734901849218,-500.0,0.0001589,2]
[346346039,1734901849228,-500.0,0.0001589,2]
[346346040,1734901849237,-500.0,0.0001589,2]
[346346041,1734901849247,-997.01,0.0001589,2]
[346346042,1734901849257,-510.54,0.0001589,2]
[346346043,1734901849267,-9333.04,0.0001589,2]
[346346044,1734901849276,-2728.49,0.0001589,2]
[346346045,1734901849286,-506.08,0.0001589,2]
[346346046,1734901849296,-1000.0,0.00015944,2]
[346346047,1734901849305,-3000.0,0.00016,2]
[346346048,1734901849315,-927.0,0.00016,2]
[346346049,1734901849339,-1098.72,0.00016005,2]
[346346050,1734901849349,-3000.0,0.0001601,2]
[346346051,1734901849358,-3000.0,0.0001602,2]
[346346052,1734901849368,-3000.0,0.0001603,2]
[346346053,1734901849377,-3000.0,0.0001604,2]
[346346054,1734901849387,-3000.0,0.0001605,2]
[346346055,1734901849397,-3000.0,0.0001606,2]
[346346056,1734901849406,-3000.0,0.0001607,2]
[346346057,1734901849415,-156.703,0.0001607,2]
[346346058,1734901849425,-3000.0,0.0001608,2]
[346346059,1734901849435,-3000.0,0.0001609,2]
[346346060,1734901849449,-3000.0,0.000161,2]
[346346061,1734901849458,-3000.0,0.0001611,2]
[346346062,1734901849467,-3000.0,0.0001612,2]
[346346063,1734901849477,-3000.0,0.0001613,2]
[346346064,1734901849486,-3000.0,0.0001614,2]
[346346065,1734901849496,-3000.0,0.0001615,2]
[346346066,1734901849506,-3000.0,0.0001616,2]
[346346067,1734901849516,-500.0,0.00016164,2]
[346346068,1734901849525,-500.0,0.00016164,2]
[346346069,1734901849535,-500.0,0.00016164,2]
[346346070,1734901849544,-500.0,0.00016164,2]
[346346071,1734901849553,-500.0,0.00016164,2]
[346346072,1734901849562,-500.0,0.00016164,2]
[346346073,1734901849572,-500.0,0.00016164,2]
[346346074,1734901849581,-550.78,0.00016164,2]
[346346075,1734901849592,-672.5,0.00016164,2]
[346346076,1734901849603,-500.0,0.00016164,2]
[346346077,1734901849614,-500.0,0.00016164,2]
[346346078,1734901849624,-500.0,0.00016164,2]
[346346079,1734901849633,-500.0,0.00016164,2]
[346346080,1734901849643,-645.38448742,0.00016164,2]
[346346081,1734901849653,-500.0,0.00016164,2]
[346346082,1734901849662,-500.0,0.00016164,2]
[346346083,1734901849672,-500.0,0.00016164,2]
[346346084,1734901849682,-500.0,0.00016164,2]
[346346085,1734901849692,-500.0,0.00016164,2]
[346346086,1734901849701,-500.0,0.00016164,2]
[346346087,1734901849712,-500.0,0.00016164,2]
[346346088,1734901849726,-500.0,0.00016164,2]
[346346089,1734901849735,-617.39,0.00016164,2]
[346346090,1734901849745,-664.65,0.00016164,2]
[346346091,1734901849755,-824.37,0.00016164,2]
[346346092,1734901849766,-5822.56,0.00016164,2]
[346346093,1734901849775,-3691.65,0.00016164,2]
[346346094,1734901849785,-538.47,0.00016164,2]
[346346095,1734901849795,-500.0,0.00016164,2]
[346346096,1734901849805,-2853.18,0.00016164,2]
[346346097,1734901849815,-500.0,0.00016164,2]
[346346098,1734901849825,-500.0,0.00016164,2]
[346346099,1734901849844,-500.0,0.00016164,2]
[346346100,1734901849859,-500.0,0.00016164,2]
[346346101,1734901849868,-500.0,0.00016164,2]
[346346102,1734901849877,-500.0,0.00016164,2]
[346346103,1734901849887,-500.0,0.00016164,2]
[346346104,1734901849899,-1083.63,0.00016164,2]
[346346105,1734901849909,-500.0,0.00016164,2]
[346346106,1734901849920,-979.18,0.00016164,2]
[346346107,1734901849930,-537.3,0.00016164,2]
[346346108,1734901849939,-500.0,0.00016164,2]
[346346109,1734901849949,-718.12,0.00016164,2]
[346346110,1734901849958,-765.66,0.00016164,2]
[346346111,1734901849967,-500.0,0.00016164,2]
[346346112,1734901849977,-1030.28,0.00016164,2]
[346346113,1734901849987,-500.0,0.00016164,2]
[346346114,1734901849997,-500.0,0.00016164,2]
[346346115,1734901850007,-500.0,0.00016164,2]
[346346116,1734901850179,-997.01,0.00016164,2]
[346346117,1734901850188,-510.54,0.00016164,2]
[346346118,1734901850198,-9333.04,0.00016164,2]
[346346119,1734901850207,-2728.49,0.00016164,2]
[346346120,1734901850216,-506.08,0.00016164,2]
[346346121,1734901850226,-3000.0,0.0001617,2]
[346346122,1734901850235,-3000.0,0.0001618,2]
[346346123,1734901850245,-3000.0,0.0001619,2]
[346346124,1734901850254,-3000.0,0.000162,2]
[346346125,1734901850264,-3000.0,0.0001621,2]
[346346126,1734901850273,-3000.0,0.0001622,2]
[346346127,1734901850282,-3000.0,0.0001623,2]
[346346128,1734901850291,-3000.0,0.0001624,2]
[346346129,1734901850301,-3000.0,0.0001625,2]